[Event "Sunway Sitges Chess Festival"]
[Date "2024.12.21"]
[White "Grimault, Nathan"]
[Black "Arkell, Keith C"]
[WhiteElo "2086"]
[BlackElo "2355"]
[Round "2.31"]
[Result "1-0"]
[TimeControl "40/5400+30:1800+30"]

1. d4 {[%clk 1:30:53]} 1... Nf6 {[%clk 1:22:41]} 2. c4 {[%clk 1:29:24]} 2... e6
{[%clk 1:23:01]} 3. Nc3 {[%clk 1:29:00]} 3... Bb4 {[%clk 1:23:25]} 4. Qc2 {[%clk
1:29:22]} 4... Nc6 {[%clk 1:22:59]} 5. Nf3 {[%clk 1:20:31]} 5... O-O {[%clk
1:22:40]} 6. Bg5 {[%clk 1:12:22]} 6... h6 7. Bh4 {[%clk 1:04:04]} 7... d5 8. e3
{[%clk 1:11:56]} 8... Be7 9. a3 {[%clk 1:06:26]} 9... a6 {[%clk 1:16:29]} 10.
Rc1 {[%clk 1:04:12]} 10... dxc4 {[%clk 1:15:59]} 11. Bxc4 {[%clk 1:03:57]} 11...
b5 {[%clk 1:16:16]} 12. Ba2 {[%clk 1:03:19]} 12... Bb7 {[%clk 1:14:37]} 13. Bxf6
{[%clk 0:58:25]} 13... Bxf6 {[%clk 1:16:44]} 14. Bb1 {[%clk 0:57:11]} 14... g6
{[%clk 1:03:47]} 15. Ne4 {[%clk 0:53:40]} 15... Be7 {[%clk 1:01:01]} 16. h4
{[%clk 0:47:11]} 16... h5 {[%clk 0:50:46]} 17. Nfg5 {[%clk 0:49:38]} 17... Na5
{[%clk 0:45:32]} 18. O-O {[%clk 0:39:24]} 18... Bxe4 {[%clk 0:41:56]} 19. Qxe4
{[%clk 0:34:17]} 19... Bxg5 {[%clk 0:42:08]} 20. hxg5 {[%clk 0:34:41]} 20...
Qxg5 {[%clk 0:26:56]} 21. Rc5 {[%clk 0:28:13]} 21... Qf6 {[%clk 0:23:25]} 22.
Ba2 {[%clk 0:24:52]} 22... Ra7 {[%clk 0:09:53]} 23. Rfc1 {[%clk 0:23:44]} 23...
Rc8 {[%clk 0:04:04]} 24. a4 {[%clk 0:14:06]} 24... Nb7 {[%clk 0:04:04]} 25. Rxc7
{[%clk 0:13:38]} 25... Rxc7 {[%clk 0:04:30]} 26. Rxc7 {[%clk 0:14:01]} 26... Nd6
{[%clk 0:04:30]} 27. Qc6 {[%clk 0:14:01]} 27... Rxc7 {[%clk 0:04:30]} 28. Qxc7
{[%clk 0:14:01]} 28... Ne4 {[%clk 0:04:30]} 29. Qc2 {[%clk 0:14:01]} 29... Qh4
{[%clk 0:00:-14]} 30. d5 {[%clk 0:14:48]} 30... exd5 {[%clk 0:03:17]} 31. Bxd5
{[%clk 0:15:06]} 31... Ng5 {[%clk 0:02:19]} 32. axb5 {[%clk 0:14:32]} 32... axb5
{[%clk 0:02:43]} 33. Qxg6+ {[%clk 0:14:57]} 33... Kf8 {[%clk 0:03:10]} 34. Qd6+
{[%clk 0:15:14]} 34... Kg7 {[%clk 0:03:06]} 35. Qe5+ {[%clk 0:14:12]} 35... Kg6
{[%clk 0:02:24]} 36. Bb3 {[%clk 0:11:46]} 36... Qg4 {[%clk 0:01:45]} 37. Bc2+
{[%clk 0:12:56]} 37... f5 {[%clk 0:02:14]} 38. Qe8+ {[%clk 0:13:06]} 38... Kf6
{[%clk 0:-1:-29]} 39. Qd8+ {[%clk 0:11:18]} 39... Kg7 {[%clk 0:01:17]} 40. Bd1
{[%clk 0:36:17]} 40... Qh4 {[%clk 0:30:55]} 41. Qd7+ {[%clk 0:36:28]} 41... Kf6
{[%clk 0:26:18]} 42. Qxb5 {[%clk 0:35:25]} 42... Ne4 {[%clk 0:27:01]} 43. Qc6+
{[%clk 0:32:43]} 43... Kg7 {[%clk 0:25:43]} 44. Qc2 {[%clk 0:31:06]} 44... Qg5
{[%clk 0:23:59]} 45. Bf3 {[%clk 0:29:27]} 45... Nf6 {[%clk 0:19:20]} 46. b4
{[%clk 0:28:46]} 46... h4 {[%clk 0:20:09]} 47. b5 {[%clk 0:34:17]} 47... Ng4
{[%clk 0:18:14]} 48. b6 {[%clk 0:34:07]} 48... Ne5 {[%clk 0:17:23]} 49. Qc7+
{[%clk 0:34:19]} 1-0

[Variant "Standard"]
[Site "Europe Echecs"]

[Event "Sunway Sitges Chess Festival"]
[Date "2024.12.21"]
[White "Schulman, Julia"]
[Black "Garmendia Vega, Gabriel"]
[WhiteElo "1852"]
[BlackElo "2017"]
[Round "2.32"]
[Result "1/2-1/2"]
[TimeControl "40/5400+30:1800+30"]

1. e4 {[%clk 1:30:56]} 1... c5 {[%clk 1:30:53]} 2. Nf3 {[%clk 1:31:17]} 2... d6
{[%clk 1:30:39]} 3. d4 {[%clk 1:31:33]} 3... cxd4 {[%clk 1:31:43]} 4. Nxd4
{[%clk 1:32:11]} 4... Nf6 {[%clk 1:31:34]} 5. Nc3 {[%clk 1:31:51]} 5... a6
{[%clk 1:32:37]} 6. Rg1 {[%clk 1:31:13]} 6... e5 {[%clk 1:32:54]} 7. Nb3 {[%clk
1:30:46]} 7... h5 8. Bg5 {[%clk 1:28:37]} 8... Be6 {[%clk 1:31:21]} 9. Qd2
{[%clk 1:27:52]} 9... Nbd7 {[%clk 1:31:02]} 10. O-O-O {[%clk 1:27:05]} 10... Be7
{[%clk 1:30:11]} 11. f4 {[%clk 1:28:47]} 11... Rc8 {[%clk 1:23:50]} 12. Kb1
{[%clk 1:02:23]} 12... b5 {[%clk 0:58:40]} 13. Bd3 {[%clk 0:54:38]} 13... Nb6
{[%clk 0:50:46]} 14. h3 Nc4 {[%clk 0:38:10]} 15. Qe1 {[%clk 0:36:59]} 15... Qc7
{[%clk 0:30:00]} 16. Bxf6 {[%clk 0:36:03]} 16... Bxf6 {[%clk 0:27:48]} 17. f5
{[%clk 0:32:57]} 17... Bd7 {[%clk 0:27:57]} 18. Nd5 {[%clk 0:31:11]} 18... Qb8
{[%clk 0:20:19]} 19. g4 {[%clk 0:22:56]} 19... hxg4 {[%clk 0:18:35]} 20. Nxf6+
{[%clk 0:26:32]} 20... gxf6 {[%clk 0:18:46]} 21. hxg4 {[%clk 0:25:58]} 21... Rg8
{[%clk 0:16:50]} 22. Qh4 {[%clk 0:25:13]} 22... Rg5 {[%clk 0:11:19]} 23. Nd2
{[%clk 0:20:38]} 23... Nxd2+ {[%clk 0:16:35]} 24. Rxd2 {[%clk 0:21:00]} 24...
Ke7 {[%clk 0:12:13]} 25. Be2 {[%clk 0:17:05]} 25... Bc6 {[%clk 0:07:27]} 26. Bf3
{[%clk 0:15:05]} 26... Qa8 {[%clk 0:12:56]} 27. Qe1 {[%clk 0:14:02]} 27... Rd8
{[%clk 0:10:35]} 28. Qe3 {[%clk 0:13:41]} 28... Qb7 {[%clk 0:08:46]} 29. Rgd1
{[%clk 0:13:31]} 29... Rgg8 {[%clk 0:08:57]} 30. Rg1 {[%clk 0:12:28]} 30... Rg5
{[%clk 0:08:33]} 31. Rgd1 {[%clk 0:12:54]} 31... Rd7 {[%clk 0:07:25]} 32. Rh2
{[%clk 0:12:22]} 32... Qa7 {[%clk 0:06:49]} 33. Qb3 {[%clk 0:11:35]} 33... Qc5
{[%clk 0:02:55]} 34. Rh7 {[%clk 0:09:04]} 34... Qc4 {[%clk 0:06:18]} 35. Qe3
{[%clk 0:08:30]} 35... Qc5 {[%clk 0:04:23]} 36. Qb3 {[%clk 0:09:35]} 36... Qc4
{[%clk 0:04:15]} 37. Qe3 {[%clk 0:09:52]} 37... Rg8 {[%clk 0:04:24]} 38. Rh5
{[%clk 0:05:27]} 38... Qc5 {[%clk 0:04:05]} 39. Qb3 {[%clk 0:06:54]} 39... Rdd8
{[%clk 0:00:04]} 40. Rh7 {[%clk 0:06:45]} 40... Qc4 {[%clk 0:34:13]} 41. Qe3
{[%clk 0:-4:-5]} 41... Qc5 {[%clk 0:23:01]} 42. Qb3 {[%clk 0:-11:-10]} 42...
Rdf8 {[%clk 0:17:40]} 43. Qd3 {[%clk 0:-20:-37]} 43... Bb7 {[%clk 0:12:44]} 44.
Qd2 {[%clk 0:19:47]} 1/2-1/2

[Variant "Standard"]
[Site "Europe Echecs"]

[Event "Sunway Sitges Chess Festival"]
[Date "2024.12.21"]
[White "Song, Edward"]
[Black "Alekseenko, Kirill"]
[WhiteElo "2363"]
[BlackElo "2673"]
[Round "3.1"]
[Result "1-0"]
[TimeControl "40/5400+30:1800+30"]

1. e4 {[%clk 1:28:22]} 1... e5 {[%clk 1:30:33]} 2. Nf3 {[%clk 1:28:47]} 2... Nc6
{[%clk 1:30:55]} 3. Bb5 {[%clk 1:29:10]} 3... a6 {[%clk 1:31:10]} 4. Ba4 {[%clk
1:29:34]} 4... Nf6 {[%clk 1:31:19]} 5. O-O {[%clk 1:29:57]} 5... Be7 {[%clk
1:31:04]} 6. Re1 {[%clk 1:29:34]} 6... b5 {[%clk 1:31:01]} 7. Bb3 {[%clk
1:29:28]} 7... d6 {[%clk 1:31:41]} 8. c3 {[%clk 1:29:13]} 8... O-O {[%clk
1:31:40]} 9. h3 {[%clk 1:29:01]} 9... Nd7 {[%clk 1:31:34]} 10. d4 {[%clk
1:28:19]} 10... Nb6 {[%clk 1:24:48]} 11. Nbd2 {[%clk 1:27:55]} 11... Bf6 {[%clk
1:22:50]} 12. Nf1 {[%clk 1:23:46]} 12... a5 {[%clk 1:12:58]} 13. Ne3 {[%clk
1:14:53]} 13... a4 {[%clk 1:09:03]} 14. Bc2 {[%clk 1:03:18]} 14... Ne7 {[%clk
1:01:01]} 15. Ng4 {[%clk 1:03:02]} 15... Ng6 {[%clk 0:49:27]} 16. dxe5 {[%clk
1:01:57]} 16... Bxe5 {[%clk 0:42:10]} 17. Bg5 {[%clk 0:58:50]} 17... Qe8 {[%clk
0:34:24]} 18. Nd4 {[%clk 0:51:31]} 18... a3 {[%clk 0:33:09]} 19. b3 {[%clk
0:44:02]} 19... Bxg4 {[%clk 0:22:47]} 20. Qxg4 {[%clk 0:31:12]} 20... c5 {[%clk
0:52:39]} 21. Ne2 {[%clk 0:15:33]} 21... b4 {[%clk 0:53:04]} 22. Rad1 {[%clk
0:10:18]} 22... Qc6 {[%clk 0:26:25]} 23. f4 {[%clk 0:08:15]} 23... Bxc3 {[%clk
0:17:32]} 24. Nxc3 {[%clk 0:08:40]} 24... bxc3 {[%clk 0:17:56]} 25. e5 {[%clk
0:08:39]} 25... Rae8 {[%clk 0:17:08]} 26. h4 {[%clk 0:03:21]} 26... dxe5 {[%clk
0:13:47]} 27. f5 {[%clk 0:02:52]} 27... Nf4 {[%clk 0:10:39]} 28. Be4 {[%clk
0:03:03]} 28... Qc7 {[%clk 0:07:02]} 29. Bh6 {[%clk 0:02:06]} 29... f6 {[%clk
0:06:30]} 30. Qg3 {[%clk 0:00:33]} 30... Re7 {[%clk 0:03:56]} 31. Bxf4 {[%clk
0:00:37]} 31... exf4 {[%clk 0:04:21]} 32. Qxc3 {[%clk 0:01:05]} 32... Rfe8
{[%clk 0:04:38]} 33. Bf3 {[%clk 0:01:08]} 33... Re3 {[%clk 0:02:25]} 34. Qa5
{[%clk 0:01:18]} 34... g6 {[%clk 0:01:30]} 35. Rf1 {[%clk 0:01:15]} 35... Kg7
{[%clk 0:01:09]} 36. Rc1 {[%clk 0:00:-43]} 36... R8e5 {[%clk 0:00:39]} 37. fxg6
{[%clk 0:00:52]} 37... hxg6 {[%clk 0:01:04]} 38. Qxa3 {[%clk 0:01:04]} 38... c4
{[%clk 0:01:30]} 39. Qb4 {[%clk 0:01:08]} 39... Qa7 {[%clk 0:00:42]} 40. Kh1
{[%clk 0:30:32]} 40... Re8 {[%clk 0:30:33]} 41. bxc4 {[%clk 0:27:02]} 41... Nd7
{[%clk 0:21:38]} 42. c5 {[%clk 0:23:37]} 42... Ne5 {[%clk 0:19:44]} 43. c6
{[%clk 0:21:18]} 43... Rb8 {[%clk 0:12:20]} 44. Qxb8 {[%clk 0:09:47]} 44... Qxb8
{[%clk 0:12:05]} 45. c7 {[%clk 0:10:14]} 45... Qc8 {[%clk 0:09:16]} 46. Bb7
{[%clk 0:10:34]} 46... Rh3+ {[%clk 0:08:57]} 47. Kg1 {[%clk 0:09:11]} 47... Qxb7
{[%clk 0:09:23]} 48. c8=Q {[%clk 0:09:00]} 48... Qxc8 {[%clk 0:09:31]} 49. Rxc8
{[%clk 0:10:00]} 49... Rxh4 {[%clk 0:09:56]} 50. Rc2 {[%clk 0:06:30]} 50... g5
{[%clk 0:09:05]} 51. a4 {[%clk 0:06:47]} 51... f3 {[%clk 0:07:49]} 52. Ra1
{[%clk 0:05:38]} 52... fxg2 {[%clk 0:05:13]} 53. Rxg2 {[%clk 0:05:11]} 53...
Nf3+ {[%clk 0:04:53]} 54. Kf2 {[%clk 0:05:37]} 54... Nd4 {[%clk 0:04:39]} 55. a5
{[%clk 0:05:18]} 55... Nc2 {[%clk 0:04:11]} 56. Ra2 {[%clk 0:05:03]} 56... Nb4
{[%clk 0:03:53]} 57. Ra3 {[%clk 0:05:29]} 57... Na6 {[%clk 0:03:16]} 58. Rgg3
{[%clk 0:05:25]} 58... Kg6 {[%clk 0:02:57]} 59. Rgb3 {[%clk 0:04:01]} 59... Rf4+
{[%clk 0:01:21]} 60. Kg2 {[%clk 0:03:22]} 60... Rg4+ {[%clk 0:01:33]} 61. Kf1
{[%clk 0:03:20]} 61... Rf4+ {[%clk 0:01:43]} 62. Ke2 {[%clk 0:03:41]} 62... Re4+
{[%clk 0:01:02]} 63. Re3 {[%clk 0:03:51]} 63... Rh4 {[%clk 0:01:02]} 64. Rh3
{[%clk 0:03:51]} 64... Re4+ {[%clk 0:01:02]} 65. Rhe3 {[%clk 0:04:20]} 65... Rh4
{[%clk 0:01:28]} 66. Re6 {[%clk 0:03:46]} 66... Nc7 {[%clk 0:01:41]} 67. Rb6
{[%clk 0:02:35]} 67... Nd5 {[%clk 0:01:49]} 68. Rbb3 {[%clk 0:02:56]} 68... Nf4+
{[%clk 0:00:54]} 69. Kf2 {[%clk 0:02:10]} 69... Rh2+ {[%clk 0:00:53]} 70. Kg1
{[%clk 0:02:01]} 70... Rh8 {[%clk 0:00:47]} 71. a6 {[%clk 0:02:18]} 71... Ne2+
{[%clk 0:01:14]} 72. Kg2 {[%clk 0:02:08]} 72... Nd4 {[%clk 0:01:13]} 73. Rb6
{[%clk 0:01:58]} 73... Nc2 {[%clk 0:01:38]} 74. Rc3 {[%clk 0:02:13]} 74... Nd4
{[%clk 0:00:52]} 75. a7 {[%clk 0:02:27]} 75... Ra8 {[%clk 0:00:43]} 76. Ra3
{[%clk 0:02:02]} 1-0

[Variant "Standard"]
[Site "Europe Echecs"]

[Event "Sunway Sitges Chess Festival"]
[Date "2024.12.21"]
[White "Tan, Jun Ying"]
[Black "Tin, Jingyao"]
[WhiteElo "2357"]
[BlackElo "2480"]
[Round "3.2"]
[Result "0-1"]
[TimeControl "40/5400+30:1800+30"]

1. d4 {[%clk 1:30:56]} 1... Nf6 {[%clk 1:28:38]} 2. c4 {[%clk 1:31:14]} 2... e6
{[%clk 1:29:02]} 3. Nf3 {[%clk 1:31:31]} 3... d5 {[%clk 1:28:53]} 4. Nc3 {[%clk
1:31:36]} 4... Be7 {[%clk 1:28:09]} 5. cxd5 {[%clk 1:31:44]} 5... exd5 {[%clk
1:28:16]} 6. Bf4 {[%clk 1:31:52]} 6... O-O {[%clk 1:27:49]} 7. e3 {[%clk
1:31:52]} 7... c6 {[%clk 1:27:18]} 8. h3 {[%clk 1:31:47]} 8... Bf5 {[%clk
1:25:40]} 9. Bd3 {[%clk 1:23:42]} 9... Bxd3 {[%clk 1:25:05]} 10. Qxd3 {[%clk
1:24:09]} 10... Nbd7 {[%clk 1:25:17]} 11. O-O {[%clk 1:23:10]} 11... Re8 {[%clk
1:24:17]} 12. Ne5 {[%clk 1:13:53]} 12... Nxe5 {[%clk 1:21:00]} 13. Bxe5 {[%clk
1:14:14]} 13... Nd7 {[%clk 1:19:37]} 14. Bh2 {[%clk 1:11:57]} 14... Bf8 {[%clk
1:16:17]} 15. Rac1 {[%clk 1:09:59]} 15... Re6 {[%clk 1:12:23]} 16. Ne2 {[%clk
1:03:33]} 16... Qb6 {[%clk 1:06:17]} 17. Qc2 {[%clk 1:00:30]} 17... Ree8 {[%clk
1:06:05]} 18. Nf4 {[%clk 0:57:15]} 18... Nf6 {[%clk 1:04:35]} 19. Ne2 {[%clk
0:48:56]} 19... Qd8 {[%clk 1:01:23]} 20. Nc3 {[%clk 0:46:32]} 20... Re6 {[%clk
1:00:42]} 21. Qf5 {[%clk 0:43:41]} 21... a5 {[%clk 0:59:17]} 22. Rc2 {[%clk
0:42:25]} 22... a4 {[%clk 0:58:15]} 23. Be5 {[%clk 0:32:24]} 23... Nd7 {[%clk
0:56:39]} 24. Bg3 {[%clk 0:30:19]} 24... Nb6 {[%clk 0:52:35]} 25. Ne2 {[%clk
0:29:14]} 25... Nc4 {[%clk 0:49:03]} 26. Nf4 {[%clk 0:28:51]} 26... Re8 {[%clk
0:48:46]} 27. Nd3 {[%clk 0:28:50]} 27... Ra5 {[%clk 0:45:28]} 28. Qf3 {[%clk
0:25:51]} 28... Rb5 {[%clk 0:42:17]} 29. Rfc1 {[%clk 0:23:32]} 29... Qb6 {[%clk
0:35:31]} 30. Qe2 {[%clk 0:23:39]} 30... Qa6 {[%clk 0:27:44]} 31. Qf3 {[%clk
0:21:21]} 31... Qa5 {[%clk 0:24:42]} 32. Qe2 {[%clk 0:20:46]} 32... Qa6 {[%clk
0:23:46]} 33. Qf3 {[%clk 0:20:51]} 33... Re6 {[%clk 0:21:06]} 34. Kh1 {[%clk
0:16:08]} 34... Re8 {[%clk 0:19:02]} 35. Kg1 {[%clk 0:19:34]} 35... Qb6 {[%clk
0:11:07]} 36. Qe2 {[%clk 0:19:24]} 36... Be7 {[%clk 0:10:45]} 37. Ne5 {[%clk
0:09:57]} 37... Nxe5 {[%clk 0:05:48]} 38. Bxe5 {[%clk 0:10:20]} 38... Rb4 {[%clk
0:05:37]} 39. Qd2 {[%clk 0:06:17]} 39... Bf8 {[%clk 0:05:25]} 40. Kh1 {[%clk
0:34:28]} 40... Ra8 {[%clk 0:34:01]} 41. Qe2 {[%clk 0:29:04]} 41... Re8 {[%clk
0:31:12]} 42. Qd2 {[%clk 0:28:35]} 42... Qb5 {[%clk 0:29:52]} 43. Bg3 {[%clk
0:26:18]} 43... Ra8 {[%clk 0:28:22]} 44. Bc7 {[%clk 0:26:03]} 44... Rc8 {[%clk
0:28:09]} 45. Bg3 {[%clk 0:26:10]} 45... Qb6 {[%clk 0:28:24]} 46. Qe2 {[%clk
0:24:53]} 46... Re8 {[%clk 0:26:17]} 47. Rd1 {[%clk 0:24:32]} 47... Re6 {[%clk
0:25:13]} 48. Qd2 {[%clk 0:22:56]} 48... Be7 {[%clk 0:23:28]} 49. Rdc1 {[%clk
0:22:33]} 49... Bf8 {[%clk 0:20:35]} 50. Rd1 {[%clk 0:21:54]} 50... Re8 {[%clk
0:20:57]} 51. Qe2 {[%clk 0:21:17]} 51... Ra8 {[%clk 0:21:12]} 52. Qd2 {[%clk
0:19:29]} 52... Ra5 {[%clk 0:21:03]} 53. Qe2 {[%clk 0:19:25]} 53... Rab5 {[%clk
0:19:28]} 54. Rdd2 {[%clk 0:19:40]} 54... Qd8 {[%clk 0:19:31]} 55. Rd1 {[%clk
0:19:15]} 55... Qf6 {[%clk 0:16:44]} 56. Rdd2 {[%clk 0:18:44]} 56... Qf5 {[%clk
0:16:19]} 57. Rd1 {[%clk 0:17:34]} 57... Qg6 {[%clk 0:15:05]} 58. Rdd2 {[%clk
0:17:34]} 58... Ra5 {[%clk 0:14:40]} 59. Rc1 {[%clk 0:11:19]} 59... Ra8 {[%clk
0:14:34]} 60. Rdc2 {[%clk 0:08:20]} 60... Re8 {[%clk 0:14:40]} 61. Qf3 {[%clk
0:06:47]} 61... Qd3 {[%clk 0:14:27]} 62. Qd1 {[%clk 0:05:21]} 62... Qe4 {[%clk
0:14:39]} 63. Qd2 {[%clk 0:04:30]} 63... Re6 {[%clk 0:14:14]} 64. Rg1 {[%clk
0:03:38]} 64... Be7 {[%clk 0:12:12]} 65. Rcc1 {[%clk 0:03:55]} 65... Rh6 {[%clk
0:11:08]} 66. Kh2 {[%clk 0:03:58]} 66... Rg6 {[%clk 0:11:24]} 67. Bf4 {[%clk
0:03:40]} 67... h5 {[%clk 0:11:07]} 68. f3 {[%clk 0:02:56]} 68... Qe6 {[%clk
0:11:17]} 69. Rge1 {[%clk 0:02:14]} 69... Rb5 {[%clk 0:10:57]} 70. Re2 {[%clk
0:02:36]} 70... Bd6 {[%clk 0:10:25]} 71. Bxd6 {[%clk 0:02:57]} 71... Qxd6+
{[%clk 0:10:53]} 72. Kh1 {[%clk 0:03:19]} 72... Re6 {[%clk 0:10:17]} 73. Qe1
{[%clk 0:03:22]} 73... Qe7 {[%clk 0:07:52]} 74. Qf2 {[%clk 0:03:30]} 74... Rb4
{[%clk 0:07:48]} 75. Rce1 {[%clk 0:03:28]} 75... Rc4 {[%clk 0:04:37]} 76. e4
{[%clk 0:02:49]} 76... dxe4 {[%clk 0:04:54]} 77. fxe4 {[%clk 0:03:03]} 77... Qg5
{[%clk 0:05:05]} 78. e5 {[%clk 0:02:42]} 78... Rc1 {[%clk 0:04:54]} 79. Kh2
{[%clk 0:01:46]} 79... Rxe1 {[%clk 0:05:09]} 80. Rxe1 {[%clk 0:02:06]} 80... Re7
{[%clk 0:04:31]} 81. Rf1 {[%clk 0:01:52]} 81... Rd7 {[%clk 0:04:41]} 82. Qf4
{[%clk 0:01:48]} 82... Qg6 {[%clk 0:04:41]} 83. Rf3 {[%clk 0:01:40]} 83... Qe6
{[%clk 0:05:04]} 84. b3 {[%clk 0:01:28]} 84... a3 {[%clk 0:04:10]} 85. Rg3
{[%clk 0:01:33]} 85... g6 {[%clk 0:03:47]} 86. Qe4 {[%clk 0:00:38]} 86... Qd5
{[%clk 0:03:04]} 87. Qc2 {[%clk 0:01:07]} 87... Kg7 {[%clk 0:02:24]} 88. Qc1
{[%clk 0:00:34]} 88... Qxd4 {[%clk 0:01:58]} 89. Qg5 {[%clk 0:00:49]} 89... Qd5
{[%clk 0:01:32]} 90. Qxh5 {[%clk 0:00:52]} 90... Re7 {[%clk 0:01:44]} 91. Qh4
{[%clk 0:00:33]} 91... Qxe5 {[%clk 0:01:50]} 92. Kh1 {[%clk 0:00:49]} 92... Qa1+
{[%clk 0:01:48]} 93. Kh2 {[%clk 0:01:18]} 93... Re2 {[%clk 0:01:17]} 94. Qf4
{[%clk 0:00:31]} 94... Qf6 {[%clk 0:01:29]} 95. Qg4 {[%clk 0:00:33]} 95... Rxa2
{[%clk 0:01:16]} 96. h4 {[%clk 0:00:46]} 96... Rf2 {[%clk 0:01:31]} 97. h5
{[%clk 0:01:03]} 97... Rf4 {[%clk 0:01:48]} 98. Qd1 {[%clk 0:00:31]} 98... Rh4+
{[%clk 0:02:03]} 99. Kg1 {[%clk 0:00:42]} 99... a2 {[%clk 0:02:09]} 0-1

[Variant "Standard"]
[Site "Europe Echecs"]

[Event "Sunway Sitges Chess Festival"]
[Date "2024.12.21"]
[White "Maurizzi, Marc`Andria"]
[Black "Dhruva Thota"]
[WhiteElo "2477"]
[BlackElo "2351"]
[Round "3.3"]
[Result "1-0"]
[TimeControl "40/5400+30:1800+30"]

1. e4 {[%clk 1:30:34]} 1... c5 {[%clk 1:29:50]} 2. Nf3 {[%clk 1:29:55]} 2... d6
{[%clk 1:29:48]} 3. d4 {[%clk 1:29:45]} 3... cxd4 {[%clk 1:29:58]} 4. Nxd4
{[%clk 1:30:07]} 4... Nf6 {[%clk 1:30:21]} 5. Nc3 {[%clk 1:29:44]} 5... a6
{[%clk 1:29:39]} 6. Qd3 {[%clk 1:30:19]} 6... Nbd7 {[%clk 1:30:31]} 7. Be2
{[%clk 1:29:03]} 7... g6 {[%clk 1:29:56]} 8. Bg5 {[%clk 1:26:09]} 8... Bg7
{[%clk 1:28:26]} 9. f4 {[%clk 1:28:29]} 9... O-O {[%clk 1:23:24]} 10. O-O-O
{[%clk 1:27:44]} 10... Qc7 {[%clk 1:14:05]} 11. g4 {[%clk 1:03:34]} 11... e5
{[%clk 1:05:28]} 12. Nb3 {[%clk 0:58:40]} 12... h6 {[%clk 1:01:26]} 13. Bxf6
{[%clk 1:12:47]} 13... Bxf6 {[%clk 0:50:29]} 14. f5 {[%clk 1:04:40]} 14... Be7
{[%clk 0:41:08]} 15. h4 {[%clk 0:50:36]} 15... Nb6 {[%clk 0:30:35]} 16. g5
{[%clk 0:49:04]} 16... hxg5 {[%clk 0:28:59]} 17. hxg5 {[%clk 0:47:23]} 17...
Bxg5+ {[%clk 0:26:52]} 18. Kb1 {[%clk 0:52:55]} 18... Rd8 {[%clk 0:15:25]} 19.
fxg6 {[%clk 0:48:13]} 19... fxg6 {[%clk 0:13:15]} 20. Rdg1 {[%clk 0:48:27]}
20... Bf6 {[%clk 0:12:51]} 21. Rxg6+ {[%clk 0:48:32]} 21... Bg7 {[%clk 0:13:13]}
22. Rhg1 {[%clk 0:47:36]} 22... Rd7 {[%clk 0:13:34]} 23. Nd5 {[%clk 0:48:01]}
23... Nxd5 {[%clk 0:13:14]} 24. Qxd5+ {[%clk 0:48:26]} 24... Kh7 {[%clk
0:13:00]} 25. Rh6+ {[%clk 0:46:19]} 25... Kxh6 {[%clk 0:13:13]} 26. Qe6+ {[%clk
0:46:47]} 26... Kh7 {[%clk 0:13:24]} 27. Rh1+ {[%clk 0:47:15]} 1-0

[Variant "Standard"]
[Site "Europe Echecs"]

[Event "Sunway Sitges Chess Festival"]
[Date "2024.12.21"]
[White "Naoum, Spyridon"]
[Black "Gorshtein, Ido"]
[WhiteElo "2338"]
[BlackElo "2422"]
[Round "3.4"]
[Result "0-1"]
[TimeControl "40/5400+30:1800+30"]

1. f4 {[%clk 1:30:56]} 1... d5 {[%clk 1:27:59]} 2. Nf3 {[%clk 1:30:55]} 2... Bg4
{[%clk 1:26:41]} 3. e3 {[%clk 1:31:20]} 3... Nf6 {[%clk 1:26:11]} 4. b3 {[%clk
1:28:19]} 4... g6 {[%clk 1:24:03]} 5. h3 {[%clk 1:28:07]} 5... Bxf3 {[%clk
1:24:06]} 6. Qxf3 {[%clk 1:28:33]} 6... Bg7 {[%clk 1:23:01]} 7. Bb2 {[%clk
1:28:59]} 7... O-O {[%clk 1:22:54]} 8. d3 {[%clk 1:27:56]} 8... Nbd7 {[%clk
1:10:03]} 9. Nd2 {[%clk 1:15:57]} 9... c6 {[%clk 1:07:13]} 10. d4 {[%clk
1:04:50]} 10... Qa5 {[%clk 0:59:47]} 11. c3 {[%clk 1:02:29]} 11... c5 {[%clk
0:58:49]} 12. Be2 {[%clk 0:54:57]} 12... cxd4 {[%clk 0:52:07]} 13. exd4 {[%clk
0:55:11]} 13... e6 {[%clk 0:52:29]} 14. O-O {[%clk 0:54:06]} 14... Ne8 {[%clk
0:50:55]} 15. a4 {[%clk 0:50:34]} 15... Nd6 {[%clk 0:49:13]} 16. Ba3 {[%clk
0:50:26]} 16... Qc7 {[%clk 0:47:49]} 17. Rac1 {[%clk 0:50:11]} 17... Rfd8 {[%clk
0:42:16]} 18. Bd3 {[%clk 0:42:49]} 18... Nf6 {[%clk 0:41:19]} 19. Kh1 {[%clk
0:38:57]} 19... Rac8 {[%clk 0:39:03]} 20. Bb2 {[%clk 0:37:53]} 20... Qb6 {[%clk
0:37:50]} 21. Qe2 {[%clk 0:35:13]} 21... h5 {[%clk 0:25:18]} 22. b4 {[%clk
0:26:01]} 22... Nf5 {[%clk 0:21:14]} 23. Qf2 {[%clk 0:25:01]} 23... Qd6 {[%clk
0:20:25]} 24. Rg1 {[%clk 0:09:24]} 24... Bh6 {[%clk 0:13:03]} 25. Rcf1 {[%clk
0:09:39]} 25... Kg7 {[%clk 0:13:04]} 26. g3 {[%clk 0:06:24]} 26... Rh8 {[%clk
0:12:27]} 27. Qf3 {[%clk 0:05:26]} 27... Kg8 {[%clk 0:11:09]} 28. Kg2 {[%clk
0:04:15]} 28... Bg7 {[%clk 0:09:02]} 29. Re1 {[%clk 0:04:14]} 29... Kh7 {[%clk
0:06:32]} 30. Kf1 {[%clk 0:03:18]} 30... Bh6 {[%clk 0:05:08]} 31. Re5 {[%clk
0:03:47]} 31... Nxd4 {[%clk 0:04:43]} 32. cxd4 {[%clk 0:01:19]} 32... Qxb4
{[%clk 0:05:06]} 33. Ke2 {[%clk 0:01:45]} 33... Qxb2 {[%clk 0:05:10]} 34. g4
{[%clk 0:01:21]} 34... Qxd4 {[%clk 0:03:43]} 35. Rf1 {[%clk 0:01:49]} 35... hxg4
{[%clk 0:02:54]} 36. hxg4 {[%clk 0:02:18]} 36... Nd7 {[%clk 0:02:59]} 37. Re3
{[%clk 0:02:16]} 37... Kg8 {[%clk 0:03:10]} 38. g5 {[%clk 0:00:36]} 38... Bf8
{[%clk 0:02:47]} 39. Qg4 {[%clk 0:00:38]} 39... Rh2+ {[%clk 0:02:52]} 40. Kf3
{[%clk 0:31:06]} 40... Rc3 {[%clk 0:32:00]} 0-1

[Variant "Standard"]
[Site "Europe Echecs"]